fUST/lending_fUST_20250606
["ID","MTS","AMOUNT","RATE_DAILY","PERIOD"]
[364704405,1749213038023,-436.93905872,0.00019178,2]
[364704406,1749213038033,-440.0,0.00019178,2]
[364704407,1749213038043,-440.0,0.00019178,2]
[364704408,1749213038053,-440.0,0.00019178,2]
[364704409,1749213038062,-440.0,0.00019178,2]
[364704410,1749213038072,-440.0,0.00019178,2]
[364704411,1749213038081,-420.51242425,0.00019178,2]
[364704412,1749213038091,-440.0,0.00019178,2]
[364704413,1749213038100,-420.0,0.00019178,2]
[364704414,1749213038109,-440.0,0.00019178,2]
[364704415,1749213038119,-440.0,0.00019178,2]
[364704416,1749213038129,-440.0,0.00019178,2]
[364704417,1749213038139,-440.0,0.00019178,2]
[364704419,1749213038149,-440.0,0.00019178,2]
[364704420,1749213038158,-1856.01,0.00019178,2]
[364704421,1749213038168,-440.0,0.00019178,2]
[364704422,1749213038177,-440.0,0.00019178,2]
[364704423,1749213038187,-500.0,0.00019178,2]
[364704424,1749213038196,-440.0,0.00019178,2]
[364704425,1749213038206,-440.0,0.00019178,2]
[364704426,1749213038215,-440.0,0.00019178,2]
[364704427,1749213038225,-440.0,0.00019178,2]
[364704428,1749213038234,-440.0,0.00019178,2]
[364704429,1749213038243,-440.0,0.00019178,2]
[364704430,1749213038253,-440.0,0.00019178,2]
[364704431,1749213038268,-440.0,0.00019178,2]
[364704432,1749213038277,-430.4580242,0.00019178,2]
[364704433,1749213038286,-194.76004,0.00019178,2]
[364704434,1749213038296,-500.0,0.00019451,2]
[364704435,1749213038305,-500.0,0.00019451,2]
[364704436,1749213038315,-500.0,0.00019451,2]
[364704437,1749213038324,-500.0,0.00019451,2]
[364704438,1749213038334,-440.0,0.00019452,2]
[364704439,1749213038344,-420.0,0.00019452,2]
[364704440,1749213038354,-430.0,0.00019452,2]
[364704441,1749213038363,-440.0,0.00019452,2]
[364704442,1749213038374,-488.19005141,0.00019452,2]
[364704443,1749213038383,-440.0,0.00019452,2]
[364704444,1749213038394,-434.46125129,0.00019452,2]
[364704445,1749213038404,-440.0,0.00019452,2]
[364704446,1749213038413,-440.0,0.00019452,2]
[364704447,1749213038423,-405.46675299,0.00019452,2]
[364704448,1749213038432,-420.0,0.00019452,2]
[364704449,1749213038442,-158.29097887,0.00019452,2]
[364704450,1749213038451,-430.0,0.00019452,2]
[364704451,1749213038461,-421.19447688,0.00019452,2]
[364704452,1749213038471,-405.71881688,0.00019452,2]
[364704453,1749213038480,-440.0,0.00019452,2]
[364704454,1749213038490,-430.0,0.00019452,2]
[364704455,1749213038499,-430.0,0.00019452,2]
[364704456,1749213038514,-440.0,0.00019452,2]
[364704457,1749213038523,-430.0,0.00019452,2]
[364704458,1749213038533,-415.8222463,0.00019452,2]
[364704459,1749213038543,-424.01435239,0.00019452,2]
[364704460,1749213038553,-440.0,0.00019452,2]
[364704461,1749213038562,-440.0,0.00019452,2]
[364704462,1749213038572,-430.0,0.00019452,2]
[364704463,1749213038582,-430.0,0.00019452,2]
[364704464,1749213038591,-440.0,0.00019452,2]
[364704465,1749213038603,-440.0,0.00019452,2]
[364704466,1749213038613,-398.30206293,0.00019452,2]
[364704467,1749213038624,-437.63121481,0.00019452,2]
[364704468,1749213038634,-440.0,0.00019452,2]
[364704469,1749213038644,-440.0,0.00019452,2]
[364704471,1749213038653,-440.0,0.00019452,2]
[364704473,1749213038664,-420.0,0.00019452,2]
[364704484,1749213038800,-421.07859532,0.00019452,2]
[364704486,1749213038810,-421.14370387,0.00019452,2]
[364704488,1749213038821,-440.0,0.00019452,2]
[364704490,1749213038831,-420.0,0.00019452,2]
[364704492,1749213038841,-440.0,0.00019452,2]
[364704494,1749213038851,-420.0,0.00019452,2]
[364704495,1749213038861,-410.0,0.00019452,2]
[364704496,1749213038870,-468.09775941,0.00019452,2]
[364704497,1749213038880,-351.18800078,0.00019452,2]
[364704498,1749213038890,-440.0,0.00019452,2]
[364704499,1749213038899,-286.44671503,0.00019452,2]
[364704500,1749213038908,-430.0,0.00019452,2]
[364704501,1749213038917,-440.0,0.00019452,2]
[364704502,1749213038927,-420.0,0.00019452,2]
[364704503,1749213038937,-440.0,0.00019452,2]
[364704504,1749213038947,-440.0,0.00019452,2]
[364704505,1749213038956,-450.0,0.00019452,2]
[364704506,1749213038965,-280.378766,0.00019452,2]
[364704507,1749213038974,-346.87892435,0.00019452,2]
[364704508,1749213038984,-367.1139216,0.00019452,2]
[364704509,1749213038994,-420.0,0.00019452,2]
[364704510,1749213039003,-440.0,0.00019452,2]
[364704511,1749213039017,-431.75427303,0.00019452,2]
[364704512,1749213039026,-245.21443288,0.00019452,2]
[364704513,1749213039036,-420.0,0.00019452,2]
[364704514,1749213039046,-440.0,0.00019452,2]
[364704515,1749213039056,-410.0,0.00019452,2]
[364704516,1749213039065,-407.91675714,0.00019452,2]
[364704517,1749213039074,-440.0,0.00019452,2]
[364704518,1749213039084,-440.0,0.00019452,2]
[364704519,1749213039093,-326.36120032,0.00019452,2]
[364704520,1749213039103,-416.78653043,0.00019452,2]
[364704521,1749213039113,-445.46,0.00019452,2]
[364704522,1749213039123,-440.0,0.00019452,2]
[364704523,1749213039133,-440.0,0.00019452,2]
[364704524,1749213039142,-430.0,0.00019452,2]
[364704525,1749213039151,-440.0,0.00019452,2]
[364704526,1749213039160,-430.0,0.00019452,2]
[364704527,1749213039169,-420.0,0.00019452,2]
[364704528,1749213039178,-489.51364884,0.00019452,2]
[364704529,1749213039187,-440.0,0.00019452,2]
[364704530,1749213039196,-440.0,0.00019452,2]
[364704531,1749213039205,-191.6062297,0.00019452,2]
[364704532,1749213039215,-440.0,0.00019452,2]
[364704533,1749213039223,-450.0,0.00019452,2]
[364704534,1749213039232,-440.0,0.00019452,2]
[364704535,1749213039242,-434.92044058,0.00019452,2]
[364704536,1749213039251,-440.0,0.00019452,2]
[364704537,1749213039265,-440.0,0.00019452,2]
[364704538,1749213039275,-440.0,0.00019452,2]
[364704539,1749213039284,-440.0,0.00019452,2]
[364704540,1749213039294,-430.0,0.00019452,2]
[364704541,1749213039303,-440.0,0.00019452,2]
[364704542,1749213039313,-440.0,0.00019452,2]
[364704543,1749213039323,-430.0,0.00019452,2]
[364704544,1749213039333,-875.22,0.00019452,2]
[364704545,1749213039343,-444.9,0.00019452,2]
[364704546,1749213039353,-440.0,0.00019452,2]
[364704547,1749213039362,-430.0,0.00019452,2]
[364704548,1749213039372,-310.58618859,0.00019452,2]
[364704549,1749213039381,-440.0,0.00019452,2]
[364704550,1749213039390,-440.0,0.00019452,2]
[364704551,1749213039400,-440.0,0.00019452,2]
[364704552,1749213039423,-440.0,0.00019452,2]
[364704553,1749213039436,-440.0,0.00019452,2]
[364704554,1749213039445,-420.0,0.00019452,2]
[364704555,1749213039454,-430.0,0.00019452,2]
[364704556,1749213039463,-440.0,0.00019452,2]
[364704557,1749213039472,-440.0,0.00019452,2]
[364704558,1749213039481,-440.0,0.00019452,2]
[364704559,1749213039490,-440.0,0.00019452,2]
[364704560,1749213039500,-379.01557526,0.00019452,2]
[364704561,1749213039511,-440.0,0.00019452,2]
[364704562,1749213039520,-400.52654759,0.00019452,2]
[364704563,1749213039529,-440.0,0.00019452,2]
[364704564,1749213039538,-430.0,0.00019452,2]
[364704565,1749213039547,-440.0,0.00019452,2]
[364704566,1749213039556,-410.0,0.00019452,2]
[364704567,1749213039566,-420.0,0.00019452,2]
[364704568,1749213039576,-440.0,0.00019452,2]
[364704569,1749213039586,-440.0,0.00019452,2]
[364704570,1749213039596,-440.0,0.00019452,2]
[364704571,1749213039606,-505.29,0.00019452,2]
[364704572,1749213039623,-440.0,0.00019452,2]
[364704573,1749213039635,-440.0,0.00019452,2]
[364704574,1749213039644,-440.0,0.00019452,2]
[364704575,1749213039655,-440.0,0.00019452,2]
[364704576,1749213039664,-440.0,0.00019452,2]
[364704577,1749213039676,-430.0,0.00019452,2]
[364704578,1749213039690,-440.0,0.00019452,2]
[364704579,1749213039701,-440.0,0.00019452,2]
[364704580,1749213039710,-440.0,0.00019452,2]
[364704581,1749213039720,-440.0,0.00019452,2]
[364704582,1749213039730,-440.0,0.00019452,2]
[364704583,1749213039740,-440.0,0.00019452,2]
[364704584,1749213039749,-440.0,0.00019452,2]
[364704585,1749213039763,-440.0,0.00019452,2]
[364704586,1749213039772,-745.08,0.00019452,2]
[364704587,1749213039782,-440.0,0.00019452,2]
[364704588,1749213039792,-500.0,0.00019452,2]
[364704589,1749213039801,-430.0,0.00019452,2]
[364704590,1749213039812,-440.0,0.00019452,2]
[364704591,1749213039821,-440.0,0.00019452,2]
[364704592,1749213039831,-2205.3,0.00019452,2]
[364704593,1749213039840,-437.419172,0.00019452,2]
[364704594,1749213039850,-440.0,0.00019452,2]
[364704595,1749213039860,-440.0,0.00019452,2]
[364704596,1749213039870,-420.0,0.00019452,2]
[364704597,1749213039880,-440.0,0.00019452,2]
[364704598,1749213039890,-440.0,0.00019452,2]
[364704599,1749213039899,-440.0,0.00019452,2]
[364704600,1749213039909,-440.0,0.00019452,2]
[364704602,1749213039918,-1464.36,0.00019452,2]
[364704604,1749213039927,-440.0,0.00019452,2]
[364704605,1749213039937,-440.0,0.00019452,2]
[364704607,1749213039946,-440.0,0.00019452,2]
[364704609,1749213039958,-440.0,0.00019452,2]
[364704610,1749213039967,-440.0,0.00019452,2]
[364704611,1749213039977,-293.2253248,0.00019452,2]
[364704612,1749213039986,-440.0,0.00019452,2]
[364704614,1749213039996,-440.0,0.00019452,2]
[364704616,1749213040006,-440.0,0.00019452,2]
[364704618,1749213040019,-1629.33,0.00019452,2]
[364704620,1749213040029,-440.0,0.00019452,2]
[364704622,1749213040039,-3035.51,0.00019452,2]
[364704624,1749213040049,-526.85,0.00019452,2]
[364704627,1749213040059,-599.08,0.00019452,2]
[364704629,1749213040069,-430.0,0.00019452,2]
[364704631,1749213040079,-440.0,0.00019452,2]
[364704633,1749213040088,-440.0,0.00019452,2]
[364704635,1749213040098,-440.0,0.00019452,2]
[364704637,1749213040107,-440.0,0.00019452,2]
[364704639,1749213040117,-440.0,0.00019452,2]
[364704641,1749213040126,-633.0,0.00019452,2]
[364704643,1749213040136,-440.0,0.00019452,2]
[364704645,1749213040146,-440.0,0.00019452,2]
[364704647,1749213040156,-440.0,0.00019452,2]
[364704649,1749213040166,-440.0,0.00019452,2]
[364704651,1749213040175,-742.14,0.00019452,2]
[364704653,1749213040185,-381.37039718,0.00019452,2]
[364704655,1749213040194,-465.66784215,0.00019452,2]
[364704657,1749213040203,-440.0,0.00019452,2]
[364704659,1749213040213,-440.0,0.00019452,2]
[364704661,1749213040222,-440.0,0.00019452,2]
[364704663,1749213040231,-420.0,0.00019452,2]
[364704665,1749213040240,-558.18578969,0.00019452,2]
[364704667,1749213040250,-440.0,0.00019452,2]
[364704669,1749213040262,-440.0,0.00019452,2]
[364704671,1749213040272,-292.83713265,0.00019452,2]
[364704673,1749213040281,-1055.7,0.00019452,2]
[364704675,1749213040291,-430.0,0.00019452,2]
[364704677,1749213040300,-440.0,0.00019452,2]
[364704679,1749213040310,-440.0,0.00019452,2]
[364704681,1749213040319,-440.0,0.00019452,2]
[364704683,1749213040329,-440.0,0.00019452,2]
[364704685,1749213040339,-440.0,0.00019452,2]
[364704687,1749213040349,-440.0,0.00019452,2]
[364704689,1749213040359,-440.0,0.00019452,2]
[364704691,1749213040369,-1101.47,0.00019452,2]
[364704693,1749213040378,-440.0,0.00019452,2]
[364704695,1749213040387,-440.0,0.00019452,2]
[364704697,1749213040397,-440.0,0.00019452,2]
[364704699,1749213040407,-440.0,0.00019452,2]
[364704701,1749213040418,-517.92335851,0.00019452,2]
[364704703,1749213040428,-440.0,0.00019452,2]
[364704705,1749213040438,-453.26,0.00019452,2]
[364704707,1749213040447,-440.0,0.00019452,2]
[364704709,1749213040457,-440.0,0.00019452,2]
[364704711,1749213040467,-420.0,0.00019452,2]
[364704713,1749213040477,-440.0,0.00019452,2]
[364704715,1749213040486,-440.0,0.00019452,2]
[364704717,1749213040495,-463.99,0.00019452,2]
[364704719,1749213040505,-440.0,0.00019452,2]
[364704721,1749213040518,-217.01137369,0.00019452,2]
[364704723,1749213040529,-312.63731051,0.00019452,2]
[364704725,1749213040539,-440.0,0.00019452,2]
[364704727,1749213040549,-4644.77,0.00019452,2]
[364704729,1749213040559,-440.0,0.00019452,2]
[364704730,1749213040569,-1057.5,0.00019452,2]
[364704731,1749213040581,-440.0,0.00019452,2]
[364704732,1749213040590,-440.0,0.00019452,2]
[364704733,1749213040602,-440.0,0.00019452,2]
[364704734,1749213040612,-430.0,0.00019452,2]
[364704735,1749213040623,-440.0,0.00019452,2]
[364704736,1749213040633,-440.0,0.00019452,2]
[364704737,1749213040644,-440.0,0.00019452,2]
[364704738,1749213040654,-422.0949607,0.00019452,2]
[364704739,1749213040663,-440.0,0.00019452,2]
[364704740,1749213040674,-379.93495717,0.00019452,2]
[364704741,1749213040684,-440.0,0.00019452,2]
[364704742,1749213040693,-430.0,0.00019452,2]
[364704743,1749213040703,-356.59886749,0.00019452,2]
[364704744,1749213040713,-440.0,0.00019452,2]
[364704745,1749213040723,-440.0,0.00019452,2]
[364704746,1749213040733,-440.0,0.00019452,2]
[364704747,1749213040742,-440.0,0.00019452,2]
[364704748,1749213040751,-440.0,0.00019452,2]
[364704749,1749213040765,-479.38413933,0.00019452,2]
[364704750,1749213040776,-503.93,0.00019452,2]
[364704751,1749213040787,-440.0,0.00019452,2]
[364704752,1749213040798,-440.0,0.00019452,2]
[364704753,1749213040809,-440.0,0.00019452,2]
[364704754,1749213040820,-440.0,0.00019452,2]
[364704755,1749213040830,-435.20495168,0.00019452,2]
[364704756,1749213040840,-437.78189297,0.00019452,2]
[364704757,1749213040853,-588.94,0.00019452,2]
[364704758,1749213040864,-440.0,0.00019452,2]
[364704759,1749213040874,-440.0,0.00019452,2]
[364704760,1749213040885,-759.25,0.00019452,2]
[364704761,1749213040895,-440.0,0.00019452,2]
[364704762,1749213040905,-440.0,0.00019452,2]
[364704763,1749213040915,-410.0,0.00019452,2]
[364704764,1749213040924,-819.71,0.00019452,2]
[364704765,1749213040934,-440.0,0.00019452,2]
[364704766,1749213040943,-944.35,0.00019452,2]
[364704767,1749213040953,-440.0,0.00019452,2]
[364704768,1749213040963,-440.0,0.00019452,2]
[364704769,1749213040972,-185.45516378,0.00019452,2]
[364704770,1749213040982,-412.41481194,0.00019452,2]
[364704771,1749213040992,-440.0,0.00019452,2]
[364704772,1749213041002,-273.39942478,0.00019452,2]
[364704773,1749213041015,-440.0,0.00019452,2]
[364704774,1749213041025,-440.0,0.00019452,2]
[364704775,1749213041035,-440.0,0.00019452,2]
[364704776,1749213041044,-440.0,0.00019452,2]
[364704777,1749213041054,-440.0,0.00019452,2]
[364704778,1749213041063,-440.0,0.00019452,2]
[364704779,1749213041072,-440.0,0.00019452,2]
[364704780,1749213041082,-440.0,0.00019452,2]
[364704781,1749213041091,-440.0,0.00019452,2]
[364704782,1749213041100,-440.0,0.00019452,2]
[364704783,1749213041110,-440.0,0.00019452,2]
[364704784,1749213041119,-440.0,0.00019452,2]
[364704785,1749213041128,-300.0,0.00019452,2]
[364704786,1749213041138,-440.0,0.00019452,2]
[364704787,1749213041147,-440.0,0.00019452,2]
[364704788,1749213041156,-440.0,0.00019452,2]
[364704789,1749213041165,-440.0,0.00019452,2]
[364704790,1749213041175,-440.0,0.00019452,2]
[364704791,1749213041184,-440.0,0.00019452,2]
[364704792,1749213041193,-440.0,0.00019452,2]
[364704793,1749213041202,-440.0,0.00019452,2]
[364704794,1749213041212,-1034.83,0.00019452,2]
[364704795,1749213041222,-440.0,0.00019452,2]
[364704796,1749213041231,-440.0,0.00019452,2]
[364704797,1749213041240,-440.0,0.00019452,2]
[364704798,1749213041249,-440.0,0.00019452,2]
[364704799,1749213041260,-440.0,0.00019452,2]
[364704800,1749213041270,-440.0,0.00019452,2]
[364704801,1749213041279,-440.0,0.00019452,2]
[364704802,1749213041288,-440.0,0.00019452,2]
[364704803,1749213041297,-857.67,0.00019452,2]
[364704804,1749213041306,-274.7704918,0.00019452,2]
[364704805,1749213041315,-440.0,0.00019452,2]
[364704806,1749213041324,-440.0,0.00019452,2]
[364704807,1749213041333,-440.0,0.00019452,2]
[364704808,1749213041343,-3064.33,0.00019452,2]
[364704809,1749213041352,-440.0,0.00019452,2]
[364704810,1749213041362,-224.55523875,0.00019452,2]
[364704811,1749213041371,-440.0,0.00019452,2]
[364704812,1749213041379,-440.0,0.00019452,2]
[364704813,1749213041389,-440.0,0.00019452,2]
[364704814,1749213041398,-440.0,0.00019452,2]
[364704815,1749213041407,-440.0,0.00019452,2]
[364704816,1749213041417,-440.0,0.00019452,2]
[364704817,1749213041426,-1856.01,0.00019452,2]
[364704818,1749213041435,-440.0,0.00019452,2]
[364704819,1749213041444,-440.0,0.00019452,2]
[364704820,1749213041454,-500.0,0.00019452,2]
[364704821,1749213041463,-430.0,0.00019452,2]
[364704822,1749213041473,-479.84832364,0.00019452,2]
[364704823,1749213041482,-440.0,0.00019452,2]
[364704824,1749213041491,-533.32734191,0.00019452,2]
[364704825,1749213041501,-440.0,0.00019452,2]
[364704826,1749213041513,-440.0,0.00019452,2]
[364704827,1749213041522,-397.08235146,0.00019452,2]
[364704828,1749213041532,-500.0,0.00019473,2]
[364704829,1749213041541,-500.0,0.00019473,2]
[364704830,1749213041550,-500.0,0.00019473,2]
[364704831,1749213041560,-500.0,0.00019473,2]
[364704832,1749213041570,-500.0,0.00019473,2]
[364704833,1749213041580,-501.91225782,0.00019473,2]
[364704834,1749213041589,-500.0,0.00019473,2]
[364704835,1749213041602,-500.34299314,0.00019473,2]
[364704836,1749213041611,-501.85638048,0.00019473,2]
[364704837,1749213041621,-507.05499244,0.00019473,2]
[364704838,1749213041630,-500.0,0.00019473,2]
[364704839,1749213041641,-549.40032849,0.00019473,2]
[364704840,1749213041650,-500.0,0.00019473,2]
[364704841,1749213041660,-500.0,0.00019473,2]
[364704842,1749213041670,-500.0,0.00019473,2]
[364704843,1749213041680,-2904.32186923,0.000195,2]
[364704844,1749213041690,-2904.3218691,0.000195,2]
[364704845,1749213041699,-2804.46774235,0.000195,2]
[364704846,1749213041725,-99.85412675,0.000195,2]
[364704847,1749213041734,-2904.3218691,0.00019521,2]
[364704848,1749213041744,-448.21050814,0.00019604,2]
[364704849,1749213041753,-2565.65018688,0.00019621,2]
[364704850,1749213041765,-500.0,0.00019708,2]
[364704851,1749213041774,-501.18829422,0.00019708,2]
[364704852,1749213041784,-500.0,0.00019721,2]
[364704853,1749213041793,-500.0,0.00019725,2]
[364704854,1749213041803,-500.0,0.00019725,2]
[364704855,1749213041813,-500.0,0.00019725,2]
[364704856,1749213041822,-420.0,0.00019726,2]
[364704857,1749213041832,-211.71339719,0.00019726,2]
[364704858,1749213041842,-420.0,0.00019726,2]
[364704859,1749213041852,-440.0,0.00019726,2]
[364704860,1749213041862,-212.53651973,0.00019726,2]
[364704861,1749213042000,-506.93897582,0.00019726,2]
[364704862,1749213042014,-420.0,0.00019726,2]
[364704863,1749213042023,-422.50882578,0.00019726,2]
[364704864,1749213042032,-497.4490882,0.00019726,2]
[364704865,1749213042042,-274.15190336,0.00019726,2]
[364704866,1749213042051,-440.0,0.00019726,2]
[364704867,1749213042060,-440.0,0.00019726,2]
[364704868,1749213042070,-440.0,0.00019726,2]
[364704869,1749213042080,-440.0,0.00019726,2]
[364704870,1749213042091,-262.34964914,0.00019726,2]
[364704871,1749213042101,-440.0,0.00019726,2]
[364704872,1749213042110,-440.0,0.00019726,2]
[364704873,1749213042120,-163.60431757,0.00019726,2]
[364704874,1749213042129,-440.0,0.00019726,2]
[364704875,1749213042140,-553.81898444,0.00019726,2]
[364704876,1749213042150,-565.37569768,0.00019726,2]
[364704877,1749213042159,-440.0,0.00019726,2]
[364704878,1749213042169,-440.0,0.00019726,2]
[364704879,1749213042177,-440.0,0.00019726,2]
[364704880,1749213042188,-445.46,0.00019726,2]
[364704881,1749213042198,-420.0,0.00019726,2]
[364704882,1749213042207,-440.0,0.00019726,2]
[364704883,1749213042216,-440.0,0.00019726,2]
[364704884,1749213042225,-440.0,0.00019726,2]
[364704885,1749213042234,-440.0,0.00019726,2]
[364704886,1749213042244,-440.0,0.00019726,2]
[364704887,1749213042253,-440.0,0.00019726,2]
[364704888,1749213042265,-440.0,0.00019726,2]
[364704889,1749213042274,-440.0,0.00019726,2]
[364704890,1749213042284,-440.0,0.00019726,2]
[364704891,1749213042293,-440.0,0.00019726,2]
[364704892,1749213042303,-426.64667278,0.00019726,2]
[364704893,1749213042312,-875.22,0.00019726,2]
[364704894,1749213042322,-444.9,0.00019726,2]
[364704895,1749213042331,-440.0,0.00019726,2]
[364704896,1749213042340,-440.0,0.00019726,2]
[364704898,1749213042350,-440.0,0.00019726,2]
[364704900,1749213042359,-440.0,0.00019726,2]
[364704901,1749213042368,-440.0,0.00019726,2]
[364704902,1749213042378,-440.0,0.00019726,2]
[364704903,1749213042387,-440.0,0.00019726,2]
[364704904,1749213042396,-440.0,0.00019726,2]
[364704905,1749213042405,-440.0,0.00019726,2]
[364704907,1749213042415,-440.0,0.00019726,2]
[364704908,1749213042424,-440.0,0.00019726,2]
[364704909,1749213042433,-440.0,0.00019726,2]
[364704910,1749213042443,-430.0,0.00019726,2]
[364704911,1749213042452,-505.29,0.00019726,2]
[364704913,1749213042461,-440.0,0.00019726,2]
[364704916,1749213042471,-420.0,0.00019726,2]
[364704917,1749213042481,-440.0,0.00019726,2]
[364704919,1749213042490,-310.22492835,0.00019726,2]
[364704921,1749213042500,-370.0,0.00019726,2]
[364704924,1749213042513,-440.0,0.00019726,2]
[364704926,1749213042523,-420.0,0.00019726,2]
[364704927,1749213042532,-440.0,0.00019726,2]
[364704928,1749213042541,-412.86358554,0.00019726,2]
[364704929,1749213042551,-440.0,0.00019726,2]
[364704931,1749213042561,-440.0,0.00019726,2]
[364704932,1749213042571,-229.1,0.00019726,2]
[364704933,1749213042583,-745.08,0.00019726,2]
[364704934,1749213042592,-440.0,0.00019726,2]
[364704935,1749213042605,-500.0,0.00019726,2]
[364704936,1749213042614,-440.0,0.00019726,2]
[364704937,1749213042624,-400.0,0.00019726,2]
[364704938,1749213042634,-2205.3,0.00019726,2]
[364704939,1749213042643,-440.0,0.00019726,2]
[364704940,1749213042653,-319.10420053,0.00019726,2]
[364704942,1749213042662,-440.0,0.00019726,2]
[364704943,1749213042673,-440.0,0.00019726,2]
[364704944,1749213042683,-440.0,0.00019726,2]
[364704945,1749213042692,-1464.36,0.00019726,2]
[364704946,1749213042702,-307.1825172,0.00019726,2]
[364704947,1749213042711,-440.0,0.00019726,2]
[364704948,1749213042720,-440.0,0.00019726,2]
[364704949,1749213042730,-430.0,0.00019726,2]
[364704950,1749213042740,-410.0,0.00019726,2]
[364704951,1749213042749,-440.0,0.00019726,2]
[364704953,1749213042760,-440.0,0.00019726,2]
[364704955,1749213042770,-1629.33,0.00019726,2]
[364704957,1749213042779,-3035.51,0.00019726,2]
[364704959,1749213042788,-526.85,0.00019726,2]
[364704961,1749213042798,-599.08,0.00019726,2]
[364704963,1749213042808,-410.0,0.00019726,2]
[364704965,1749213042817,-440.0,0.00019726,2]
[364704967,1749213042826,-440.0,0.00019726,2]
[364704969,1749213042836,-440.0,0.00019726,2]
[364704971,1749213042846,-440.0,0.00019726,2]
[364704973,1749213042857,-633.0,0.00019726,2]
[364704976,1749213042866,-440.0,0.00019726,2]
[364704978,1749213042876,-440.0,0.00019726,2]
[364704980,1749213042885,-440.0,0.00019726,2]
[364704982,1749213042894,-440.0,0.00019726,2]
[364704984,1749213042903,-742.14,0.00019726,2]
[364704986,1749213042913,-440.0,0.00019726,2]
[364704988,1749213042922,-440.0,0.00019726,2]
[364704990,1749213042930,-440.0,0.00019726,2]
[364704992,1749213042940,-420.0,0.00019726,2]
[364704994,1749213042949,-440.0,0.00019726,2]
[364704996,1749213042958,-1055.7,0.00019726,2]
[364704998,1749213042967,-440.0,0.00019726,2]
[364705001,1749213042978,-440.0,0.00019726,2]
[364705004,1749213042988,-440.0,0.00019726,2]
[364705007,1749213042997,-440.0,0.00019726,2]
[364705010,1749213043006,-1101.47,0.00019726,2]
[364705012,1749213043018,-440.0,0.00019726,2]
[364705015,1749213043028,-440.0,0.00019726,2]
[364705018,1749213043037,-440.0,0.00019726,2]
[364705020,1749213043046,-453.26,0.00019726,2]
[364705022,1749213043056,-440.0,0.00019726,2]
[364705024,1749213043065,-440.0,0.00019726,2]
[364705026,1749213043074,-440.0,0.00019726,2]
[364705028,1749213043084,-440.0,0.00019726,2]
[364705030,1749213043093,-463.99,0.00019726,2]
[364705032,1749213043101,-440.0,0.00019726,2]
[364705034,1749213043110,-382.14020553,0.00019726,2]
[364705036,1749213043119,-4644.77,0.00019726,2]
[364705038,1749213043129,-446.26725662,0.00019726,2]
[364705040,1749213043137,-1057.5,0.00019726,2]
[364705042,1749213043146,-440.0,0.00019726,2]
[364705044,1749213043155,-440.0,0.00019726,2]
[364705046,1749213043164,-440.0,0.00019726,2]
[364705048,1749213043173,-440.0,0.00019726,2]
[364705050,1749213043182,-440.0,0.00019726,2]
[364705052,1749213043191,-440.0,0.00019726,2]